bitfinex/quotes_BTCUSD_20240803
["timestamp","ask_amount","ask_price","bid_price","bid_amount"]
[1722696873219,1.72694529,62150.0,62149.0,0.000913]
[1722696874431,1.72894529,62150.0,62149.0,0.000913]
[1722696874599,1.36001994,62150.0,62149.0,0.000913]
[1722696874798,1.31179258,62150.0,62149.0,0.000913]
[1722696876022,1.31106665,62150.0,62149.0,0.000913]
[1722696876222,1.35929401,62150.0,62149.0,0.000913]
[1722696876451,1.31106665,62150.0,62149.0,0.000913]
[1722696877595,1.35929401,62150.0,62149.0,0.000913]
[1722696877738,1.31106665,62150.0,62149.0,0.000913]
[1722696878493,1.07594667,62150.0,62149.0,0.000913]
[1722696878715,1.35932586,62150.0,62149.0,0.000913]
[1722696879298,1.3110985,62150.0,62149.0,0.000913]
[1722696879499,1.35932586,62150.0,62149.0,0.000913]
[1722696882112,1.07594667,62150.0,62149.0,0.000913]
[1722696882347,1.35737911,62150.0,62149.0,0.000913]
[1722696882575,1.40448806,62150.0,62149.0,0.000913]
[1722696883123,1.72629006,62150.0,62149.0,0.000913]
[1722696883324,1.78273906,62150.0,62149.0,0.000913]
[1722696883585,1.72629006,62150.0,62149.0,0.000913]
[1722696884545,1.78273906,62150.0,62149.0,0.000913]
[1722696885168,1.46093706,62150.0,62149.0,0.000913]
[1722696885567,1.78273906,62150.0,62149.0,0.000913]
[1722696885773,1.7818377,62150.0,62149.0,0.000913]
[1722696885948,1.92605498,62150.0,62149.0,0.000913]
[1722696887425,2.10261194,62150.0,62149.0,0.000913]
[1722696887630,2.03027563,62150.0,62149.0,0.000913]
[1722696890003,1.70847363,62150.0,62149.0,0.000913]
[1722696891232,2.03027563,62150.0,62149.0,0.000913]
[1722696893929,2.12672405,62150.0,62149.0,0.000913]
[1722696894139,2.03027563,62150.0,62149.0,0.000913]
[1722696894363,2.12672405,62150.0,62149.0,0.000913]
[1722696896135,1.46896973,62150.0,62149.0,0.000913]
[1722696896347,2.02883624,62150.0,62149.0,0.000913]
[1722696897097,2.02883789,62150.0,62149.0,0.000913]
[1722696898017,2.14939842,62150.0,62149.0,0.000913]
[1722696898737,2.14953384,62150.0,62149.0,0.000913]
[1722696898943,2.02883789,62150.0,62149.0,0.000913]
[1722696899144,2.1495342,62150.0,62149.0,0.000913]
[1722696899340,2.02883789,62150.0,62149.0,0.000913]
[1722696900927,1.82775033,62150.0,62149.0,0.000913]
[1722696901131,1.80453008,62150.0,62149.0,0.000913]
[1722696901326,2.12633208,62150.0,62149.0,0.000913]
[1722696901762,2.19213208,62150.0,62149.0,0.000913]
[1722696902131,1.41374561,62150.0,62149.0,0.000913]
[1722696902337,1.86594218,62150.0,62149.0,0.000913]
[1722696902661,2.09117393,62150.0,62149.0,0.000913]
[1722696903623,1.43832131,62150.0,62149.0,0.000913]
[1722696903836,2.09171707,62150.0,62149.0,0.000913]
[1722696904774,2.19171707,62150.0,62149.0,0.000913]
[1722696905312,2.12591707,62150.0,62149.0,0.000913]
[1722696905712,1.80696403,62150.0,62149.0,0.000913]
[1722696905921,2.12247797,62150.0,62149.0,0.000913]
[1722696907252,1.80067597,62150.0,62149.0,0.000913]
[1722696907496,1.80067597,62150.0,62149.0,0.142013]
[1722696907802,2.12247797,62150.0,62149.0,0.142013]
[1722696908213,2.12247797,62150.0,62149.0,0.077613]
[1722696908416,2.12760392,62150.0,62149.0,0.077613]
[1722696908824,2.12760392,62150.0,62149.0,0.000913]
[1722696909442,2.19209044,62150.0,62149.0,0.000913]
[1722696913442,2.33708833,62150.0,62149.0,0.000913]
[1722696914258,2.33717859,62150.0,62149.0,0.000913]
[1722696915335,2.19209044,62150.0,62149.0,0.000913]
[1722696917057,2.19292044,62150.0,62149.0,0.000913]
[1722696917386,2.33800837,62150.0,62149.0,0.000913]
[1722696919011,2.33800779,62150.0,62149.0,0.000913]
[1722696920579,3.14742044,62150.0,62149.0,0.000913]
[1722696922127,3.46922244,62150.0,62149.0,0.000913]
[1722696922325,3.14742044,62150.0,62149.0,0.000913]
[1722696923328,3.19230317,62150.0,62149.0,0.000913]
[1722696924744,3.35125511,62150.0,62149.0,0.000913]
[1722696925040,3.59430517,62150.0,62149.0,0.000913]
[1722696925858,3.59230517,62150.0,62149.0,0.000913]
[1722696926173,3.60630517,62150.0,62149.0,0.001913]
[1722696926780,2.664898,62150.0,62149.0,0.002913]
[1722696927184,2.9867,62150.0,62149.0,0.002913]
[1722696927398,2.664898,62150.0,62149.0,0.002913]
[1722696927861,2.674898,62150.0,62149.0,0.002913]
[1722696928421,2.9967,62150.0,62149.0,0.002913]
[1722696929033,3.1663,62150.0,62149.0,0.002913]
[1722696929236,3.1863,62150.0,62149.0,0.002913]
[1722696929723,3.1863,62150.0,62149.0,1e-06]
[1722696929929,4.1208,62150.0,62149.0,1e-06]
[1722696930134,3.1663,62150.0,62149.0,1e-06]
[1722696930347,2.46855531,62150.0,62149.0,1e-06]
[1722696930551,3.16631437,62150.0,62149.0,1e-06]
[1722696930758,2.84451237,62150.0,62149.0,1e-06]
[1722696930973,3.85231437,62150.0,62149.0,1e-06]
[1722696931184,3.45091237,62150.0,62149.0,1e-06]
[1722696931387,3.45091237,62150.0,62149.0,0.001]
[1722696931388,3.42791237,62150.0,62149.0,0.001]
[1722696931632,6.38583237,62150.0,62149.0,0.001]
[1722696931837,5.69983237,62150.0,62149.0,0.001]
[1722696932056,5.37803037,62150.0,62149.0,0.001]
[1722696932270,5.31223037,62150.0,62149.0,0.001]
[1722696932733,5.33523037,62150.0,62149.0,0.001]
[1722696932965,5.48008252,62150.0,62149.0,0.001]
[1722696935716,1.126324,62149.0,62148.0,0.0753]
[1722696935890,2.1045423,62149.0,62148.0,0.0753]
[1722696936528,2.10733892,62149.0,62148.0,0.0753]
[1722696937130,2.12133892,62149.0,62148.0,0.0753]
[1722696937333,1.75804298,62149.0,62148.0,0.0753]
[1722696937490,2.07836006,62149.0,62148.0,0.0753]
[1722696937893,2.09236006,62149.0,62148.0,0.0753]
[1722696939700,1.77055306,62149.0,62148.0,0.0753]
[1722696939915,1.12693906,62149.0,62148.0,0.0753]
[1722696940119,2.0636827,62149.0,62148.0,0.1367]
[1722696940341,2.26478657,62149.0,62148.0,0.1367]
[1722696940951,1.92850887,62149.0,62148.0,0.1367]
[1722696941181,1.88405875,62149.0,62148.0,0.1367]
[1722696941378,2.20586575,62149.0,62148.0,0.1367]
[1722696941757,2.19186575,62149.0,62148.0,0.1367]
[1722696942635,2.20586575,62149.0,62148.0,0.1367]
[1722696943094,2.20586575,62149.0,62148.0,0.0753]
[1722696943898,2.52767275,62149.0,62148.0,0.0753]
[1722696944154,2.704826,62149.0,62148.0,0.0753]
[1722696944599,2.84904377,62149.0,62148.0,0.0753]
[1722696945379,2.38301957,62149.0,62148.0,0.0753]
[1722696945774,2.38301957,62149.0,62148.0,0.619518]
[1722696945775,0.30388951,62149.0,62148.0,0.619518]
[1722696945977,1.25838951,62149.0,62148.0,0.62759999]
[1722696946200,1.25838951,62149.0,62148.0,0.95133]
[1722696946383,1.25838951,62149.0,62148.0,0.95940502]
[1722696946591,1.12461241,62149.0,62148.0,1.28121702]
[1722696946747,0.9805,62149.0,62148.0,0.95940502]
[1722696946953,0.9545,62149.0,62148.0,0.95940502]
[1722696947161,0.9545,62149.0,62148.0,0.94940502]
[1722696947386,0.9605,62149.0,62148.0,0.94940502]
[1722696948296,0.9545,62149.0,62148.0,0.94940502]
[1722696948506,0.9921911,62149.0,62148.0,0.30578102]
[1722696948712,1.12594678,62149.0,62148.0,0.14487502]
[1722696948916,1.11794678,62149.0,62148.0,0.14487502]
[1722696949124,1.11894678,62149.0,62148.0,0.30878102]
[1722696949326,1.11994678,62149.0,62148.0,0.31078102]
[1722696949529,1.11894678,62149.0,62148.0,0.30878102]
[1722696949903,1.118954,62149.0,62148.0,0.63159302]
[1722696951127,1.117954,62149.0,62148.0,0.62950602]
[1722696951424,1.118784,62149.0,62148.0,0.63250602]
[1722696952355,1.11878278,62149.0,62148.0,0.63250602]
[1722696954492,1.11878278,62149.0,62148.0,0.14978802]
[1722696954920,1.11878278,62149.0,62148.0,0.63250602]
[1722696955717,1.09330714,62149.0,62148.0,0.63250602]
[1722696956119,0.81783,62149.0,62148.0,0.63250602]
[1722696956543,0.81783,62149.0,62148.0,0.14978802]
[1722696957110,0.81783,62149.0,62148.0,0.31069402]
[1722696957516,1.45799924,62149.0,62148.0,0.14978802]
[1722696957723,1.40966651,62149.0,62148.0,0.14978802]
[1722696957924,1.40966651,62149.0,62148.0,0.141713]
[1722696958328,1.40966651,62149.0,62148.0,0.138713]
[1722696958807,1.40966651,62149.0,62148.0,0.076213]
[1722696959014,1.41166651,62149.0,62148.0,0.08427384]
[1722696960205,1.27745926,62149.0,62148.0,0.08427384]
[1722696960412,1.73303279,62149.0,62148.0,0.08427384]
[1722696960642,1.13819224,62149.0,62148.0,0.08427384]
[1722696960844,1.41083272,62149.0,62148.0,0.076213]
[1722696961018,1.73263972,62149.0,62148.0,0.076213]
[1722696961221,2.05444672,62149.0,62148.0,0.076213]
[1722696961426,2.05444672,62149.0,62148.0,0.000913]
[1722696961878,2.39854048,62149.0,62148.0,0.000913]
[1722696962175,1.58154048,62149.0,62148.0,0.000913]
[1722696963153,1.25973348,62149.0,62148.0,0.000913]
[1722696965123,1.58154048,62149.0,62148.0,0.000913]
[1722696965306,1.25973348,62149.0,62148.0,0.000913]
[1722696965633,1.58154048,62149.0,62148.0,0.000913]
[1722696966019,1.25973348,62149.0,62148.0,0.000913]
[1722696966952,1.6394758,62149.0,62148.0,0.000913]
[1722696967575,1.3176688,62149.0,62148.0,0.000913]
[1722696967987,1.2560688,62149.0,62148.0,0.000913]
[1722696968314,0.5894548,62149.0,62148.0,0.082713]
[1722696968523,0.5894548,62149.0,62148.0,0.08428739]
[1722696968880,0.5894548,62149.0,62148.0,0.09235295]
[1722696969078,0.45567938,62149.0,62148.0,0.09235295]
[1722696969436,0.45567938,62149.0,62148.0,0.09077856]
[1722696969846,0.32119224,62149.0,62148.0,0.09077856]
[1722696970270,0.45495937,62149.0,62148.0,0.09077856]
[1722696970790,0.59283496,62149.0,62148.0,0.09077856]
[1722696970988,0.78087483,62149.0,62148.0,0.09077856]
[1722696971369,0.64299924,62149.0,62148.0,0.09077856]
[1722696971715,0.77676709,62149.0,62148.0,0.09077856]
[1722696971940,1.09857409,62149.0,62148.0,0.09077856]
[1722696972255,1.09857409,62149.0,62148.0,0.000913]
[1722696972457,0.96480624,62149.0,62148.0,0.000913]
[1722696972652,0.98780624,62149.0,62148.0,0.000913]
[1722696973339,1.12157435,62149.0,62148.0,0.000913]
[1722696973478,1.44338135,62149.0,62148.0,0.000913]
[1722696974735,1.30961324,62149.0,62148.0,0.000913]
[1722696975362,0.98780624,62149.0,62148.0,0.000913]
[1722696975703,1.03601475,62149.0,62148.0,0.000913]
[1722696975822,1.16978886,62149.0,62148.0,0.000913]
[1722696976222,1.03601475,62149.0,62148.0,0.000913]
[1722696976468,1.16978878,62149.0,62148.0,0.000913]
[1722696976673,1.12158027,62149.0,62148.0,0.000913]
[1722696977047,1.19389303,62149.0,62148.0,0.000913]
[1722696977494,1.19389303,62149.0,62146.0,0.14999999]
[1722696977495,0.804542,62147.0,62146.0,0.10091299]
[1722696977706,1.09577527,62147.0,62146.0,0.10091299]
[1722696979398,1.09577527,62147.0,62146.0,0.10391299]
[1722696979601,1.09577527,62147.0,62146.0,0.10491299]
[1722696980884,0.77395827,62147.0,62146.0,0.10491299]
[1722696981515,0.82222058,62147.0,62146.0,0.10491299]
[1722696982426,0.82223579,62147.0,62146.0,0.10491299]
[1722696983046,0.18205155,62147.0,62146.0,0.72974599]
[1722696983247,0.13377403,62147.0,62146.0,1.05156799]
[1722696983398,0.00283,62149.0,62148.0,0.463912]
[1722696983615,0.00283,62149.0,62148.0,0.63288471]
[1722696984039,0.13659024,62149.0,62148.0,0.63288471]
[1722696984441,0.13659024,62149.0,62148.0,0.15016671]
[1722696984638,0.29404948,62149.0,62148.0,0.00806671]
[1722696984844,0.45495248,62149.0,62148.0,0.00806671]
[1722696985045,0.160908,62147.0,62146.0,0.10091299]
[1722696985339,1.09576148,62147.0,62146.0,0.10091299]
[1722696985494,2.18234795,62147.0,62146.0,0.10091299]
[1722696985641,4.41266495,62147.0,62146.0,0.10091299]
[1722696985849,4.41266495,62147.0,62146.0,0.04501163]
[1722696985850,4.49508195,62147.0,62146.0,0.04501163]
[1722696986052,4.51508195,62147.0,62146.0,0.04501163]
[1722696986310,4.51508195,62147.0,62146.0,0.04801163]
[1722696986538,4.51508195,62147.0,62138.0,0.009955]
[1722696986539,2.027965,62139.0,62138.0,0.009955]
[1722696986742,4.67478558,62139.0,62138.0,0.009955]
[1722696986945,4.52994274,62139.0,62138.0,0.009955]
[1722696987405,4.67469784,62139.0,62138.0,0.009955]
[1722696987605,4.87741637,62139.0,62138.0,0.009955]
[1722696988048,4.55555737,62139.0,62138.0,0.009955]
[1722696988246,4.41597377,62139.0,62138.0,0.009955]
[1722696988521,4.27121867,62139.0,62138.0,0.009955]
[1722696988975,4.28801875,62139.0,62138.0,0.009955]
[1722696989186,4.30001875,62139.0,62138.0,0.009955]
[1722696989839,4.62187775,62139.0,62138.0,0.009955]
[1722696991524,4.78412611,62139.0,62138.0,0.009955]
[1722696992286,4.75812611,62139.0,62138.0,0.009955]
[1722696992500,4.75683479,62139.0,62138.0,0.009955]
[1722696992709,4.78483479,62139.0,62138.0,0.009955]
[1722696992920,4.62387775,62139.0,62138.0,0.009955]
[1722696993135,3.36075116,62139.0,62138.0,0.009955]
[1722696993345,3.19987775,62139.0,62138.0,0.009955]
[1722696993698,2.80218332,62139.0,62138.0,0.009955]
[1722696993927,3.24969615,62139.0,62138.0,0.009955]
[1722696994651,3.22573244,62139.0,62138.0,0.009955]
[1722696994851,3.24968999,62139.0,62138.0,0.009955]
[1722696995885,3.41234509,62139.0,62138.0,0.009955]
[1722696996344,3.24968999,62139.0,62138.0,0.009955]
[1722696996551,3.41233413,62139.0,62138.0,0.009955]
[1722696997012,3.49649876,62139.0,62138.0,0.009955]
[1722696997226,6.63006528,62139.0,62138.0,0.009955]
[1722696997420,6.90775482,62139.0,62138.0,0.009955]
[1722696998196,8.33175482,62139.0,62138.0,0.009955]
[1722696998395,8.35175482,62139.0,62138.0,0.009955]
[1722696998596,1.788188,62138.0,62137.0,0.03120799]
[1722696998846,2.84014047,62138.0,62137.0,0.03120799]
[1722696999191,3.32316039,62138.0,62137.0,8.3e-07]
[1722696999393,3.48051556,62138.0,62137.0,8.3e-07]
[1722697000008,3.53221204,62138.0,62137.0,8.3e-07]
[1722697000185,4.23221204,62138.0,62137.0,8.3e-07]
[1722697000422,4.24621204,62138.0,62137.0,8.3e-07]
[1722697000631,4.26021204,62138.0,62137.0,8.3e-07]
[1722697000841,4.09808995,62138.0,62137.0,8.3e-07]
[1722697001045,4.26031362,62138.0,62137.0,8.3e-07]
[1722697001245,4.27714192,62138.0,62137.0,8.3e-07]
[1722697001457,8.06126192,62138.0,62137.0,8.3e-07]
[1722697001663,5.12928675,62138.0,62137.0,8.3e-07]
[1722697001870,4.72028675,62138.0,62137.0,8.3e-07]
[1722697002070,4.68859027,62138.0,62137.0,8.3e-07]
[1722697002609,4.65459027,62138.0,62137.0,8.3e-07]
[1722697002827,4.80272731,62138.0,62137.0,8.3e-07]
[1722697002988,4.66522731,62138.0,62137.0,8.3e-07]
[1722697003187,4.80071848,62138.0,62137.0,8.3e-07]
[1722697003433,4.31932233,62138.0,62137.0,8.3e-07]
[1722697003632,4.61932233,62138.0,62137.0,8.3e-07]
[1722697003841,4.45709866,62138.0,62137.0,8.3e-07]
[1722697004082,3.75709866,62138.0,62137.0,8.3e-07]
[1722697004276,3.64305143,62138.0,62137.0,8.3e-07]
[1722697004422,3.66053099,62138.0,62137.0,8.3e-07]
[1722697005355,6.20798699,62138.0,62137.0,8.3e-07]
[1722697005561,2.47700299,62138.0,62137.0,8.3e-07]
[1722697005788,2.79886699,62138.0,62137.0,8.3e-07]
[1722697006861,3.56333099,62138.0,62137.0,8.3e-07]
[1722697007744,3.11513954,62138.0,62137.0,8.3e-07]
[1722697007921,3.56711556,62138.0,62137.0,8.3e-07]
[1722697008167,3.73029103,62138.0,62137.0,8.3e-07]
[1722697008375,4.2295102,62138.0,62137.0,8.3e-07]
[1722697008584,4.3025997,62138.0,62137.0,8.3e-07]
[1722697008793,4.32662207,62138.0,62137.0,8.3e-07]
[1722697009021,4.2065102,62138.0,62137.0,8.3e-07]
[1722697009646,4.2295102,62138.0,62137.0,8.3e-07]
[1722697010055,4.28120668,62138.0,62137.0,8.3e-07]
[1722697011299,7.34657494,62138.0,62137.0,8.3e-07]
[1722697011506,7.68122194,62138.0,62137.0,8.3e-07]
[1722697011982,6.05160194,62138.0,62137.0,8.3e-07]
[1722697012196,4.41623619,62138.0,62137.0,8.3e-07]
[1722697012416,4.27210194,62138.0,62137.0,8.3e-07]
[1722697012621,2.692315,62129.0,62128.0,0.09558282]
[1722697012847,6.62677293,62129.0,62128.0,8.2e-07]
[1722697013304,6.62677293,62129.0,62119.0,0.14999999]
[1722697013305,1.062835,62120.0,62119.0,0.05341281]
[1722697013517,4.77045499,62120.0,62119.0,0.05341281]
[1722697013732,6.08182599,62120.0,62119.0,0.05341281]
[1722697013933,6.10482599,62120.0,62119.0,0.05341281]
[1722697014417,8.02332599,62120.0,62119.0,0.05341281]
[1722697014626,6.12791755,62120.0,62119.0,0.05341281]
[1722697014836,6.14191755,62120.0,62119.0,0.05341281]
[1722697015049,6.84191755,62120.0,62119.0,0.05341281]
[1722697015266,6.14191755,62120.0,62119.0,0.05341281]
[1722697015505,6.31294729,62120.0,62119.0,0.05341281]
[1722697015699,2.350889,62112.0,62111.0,1.0]
[1722697015920,7.41424202,62112.0,62111.0,1.0]
[1722697016127,9.17524202,62112.0,62111.0,1.00742373]
[1722697016328,9.77459519,62112.0,62111.0,1.0]
[1722697016482,9.77459519,62112.0,62111.0,0.885711]
[1722697016681,9.82629167,62112.0,62111.0,0.80230208]
[1722697016885,9.82629167,62112.0,62111.0,0.64539288]
[1722697016886,11.62183867,62112.0,62111.0,0.64539288]
[1722697017086,12.16994739,62112.0,62111.0,0.43252359]
[1722697017293,12.16994739,62112.0,62111.0,0.36812359]
[1722697017294,11.95944739,62112.0,62111.0,0.36812359]
[1722697017623,12.0414265,62112.0,62111.0,0.36812359]
[1722697017765,11.71314628,62112.0,62111.0,0.30956192]
[1722697017970,11.95533174,62112.0,62111.0,0.27279955]
[1722697018196,12.18776482,62112.0,62111.0,0.11179055]
[1722697018394,2.434526,62111.0,62107.0,0.009966]
[1722697018597,6.4543711,62111.0,62107.0,0.009966]
[1722697018772,6.4543711,62111.0,62110.0,0.11109999]
[1722697019176,1.468605,62106.0,62105.0,9.9e-07]
[1722697019408,6.6120869,62106.0,62105.0,9.9e-07]
[1722697019612,8.01536586,62106.0,62105.0,9.9e-07]
[1722697019870,7.56797207,62106.0,62105.0,9.9e-07]
[1722697020012,7.41618331,62106.0,62105.0,9.9e-07]
[1722697020419,4.32769814,62106.0,62105.0,9.9e-07]
[1722697020837,3.81589987,62106.0,62105.0,9.9e-07]
[1722697021060,4.01676287,62106.0,62105.0,9.9e-07]
[1722697021262,4.00676287,62106.0,62105.0,9.9e-07]
[1722697021505,4.01676287,62106.0,62105.0,9.9e-07]
[1722697022429,3.99276287,62106.0,62105.0,9.9e-07]
[1722697022641,4.11576287,62106.0,62105.0,9.9e-07]
[1722697022845,4.12976287,62106.0,62105.0,9.9e-07]
[1722697023057,4.13976287,62106.0,62105.0,9.9e-07]
[1722697023265,3.41676287,62106.0,62105.0,9.9e-07]
[1722697023554,3.40276287,62106.0,62105.0,9.9e-07]
[1722697023762,3.43015247,62106.0,62105.0,9.9e-07]
[1722697023979,3.22725247,62106.0,62105.0,9.9e-07]
[1722697024190,3.22725247,62106.0,62105.0,0.06550099]
[1722697024613,3.25425247,62106.0,62105.0,0.06550099]
[1722697025055,3.24025247,62106.0,62105.0,0.06550099]
[1722697025258,3.25425247,62106.0,62105.0,0.06550099]
[1722697025464,3.63425247,62106.0,62105.0,0.06550099]
[1722697025667,3.65725247,62106.0,62105.0,9.9e-07]
[1722697027012,3.43801291,62106.0,62105.0,9.9e-07]
[1722697027212,3.72265434,62106.0,62105.0,9.9e-07]
[1722697027555,4.42265434,62106.0,62105.0,9.9e-07]
[1722697029390,4.57037538,62106.0,62105.0,9.9e-07]
[1722697032382,5.12591023,62106.0,62105.0,9.9e-07]
[1722697033007,5.44794023,62106.0,62105.0,9.9e-07]
[1722697033610,5.45073855,62106.0,62105.0,9.9e-07]
[1722697034012,4.90446741,62106.0,62105.0,9.9e-07]
[1722697034225,5.50988008,62106.0,62105.0,9.9e-07]
[1722697034441,5.50994558,62106.0,62105.0,9.9e-07]
[1722697034657,5.48994558,62106.0,62105.0,9.9e-07]
[1722697035235,5.5339878,62106.0,62105.0,9.9e-07]
[1722697035451,4.75185518,62106.0,62105.0,9.9e-07]
[1722697035630,4.8239801,62106.0,62105.0,9.9e-07]
[1722697036359,4.75185518,62106.0,62105.0,9.9e-07]
[1722697036704,4.74258565,62106.0,62105.0,9.9e-07]
[1722697036860,4.37247385,62106.0,62105.0,9.9e-07]
[1722697037423,4.66247385,62106.0,62105.0,9.9e-07]
[1722697037621,4.36247385,62106.0,62105.0,9.9e-07]
[1722697037819,1.227175,62102.0,62101.0,0.14500098]
[1722697038022,1.89367833,62102.0,62101.0,0.14500098]
[1722697038473,2.59367833,62102.0,62101.0,0.14500098]
[1722697039074,2.60767833,62102.0,62101.0,0.14500098]
[1722697039275,2.77614745,62102.0,62101.0,0.14500098]
[1722697040468,3.09819745,62102.0,62101.0,0.14500098]
[1722697041070,3.11219745,62102.0,62101.0,0.14500098]
[1722697041544,3.11320422,62102.0,62101.0,0.14500098]
[1722697041978,3.61515422,62102.0,62101.0,0.14500098]
[1722697042157,3.8206151,62102.0,62101.0,0.14500098]
[1722697042361,3.84462839,62102.0,62101.0,0.14500098]
[1722697042580,3.86866806,62102.0,62101.0,0.14500098]
[1722697042789,3.86873284,62102.0,62101.0,0.14500098]
[1722697043219,3.77250939,62102.0,62101.0,0.14500098]
[1722697043472,2.341378,62095.0,62094.0,0.009966]
[1722697043677,3.17735722,62095.0,62094.0,0.009966]
[1722697043886,3.24953457,62095.0,62094.0,0.009966]
[1722697044111,3.25235722,62095.0,62094.0,0.009966]
[1722697044339,3.65394422,62095.0,62094.0,0.009966]
[1722697044533,3.92753586,62095.0,62094.0,1e-06]
[1722697044736,3.84529939,62095.0,62094.0,1e-06]
[1722697044940,3.81129939,62095.0,62094.0,1e-06]
[1722697045149,4.58316797,62095.0,62094.0,1e-06]
[1722697045357,2.27353,62093.0,62092.0,0.11779099]
[1722697045556,4.69086439,62093.0,62092.0,0.11779099]
[1722697046204,5.39086439,62093.0,62092.0,0.11779099]
[1722697047023,5.40486439,62093.0,62092.0,0.11779099]
[1722697047442,5.50106723,62093.0,62092.0,0.11779099]
[1722697047650,5.51506723,62093.0,62092.0,0.11779099]
[1722697047876,4.62526604,62093.0,62092.0,0.11779099]
[1722697048103,4.58413361,62093.0,62092.0,0.11779099]
[1722697048295,4.6182284,62093.0,62092.0,0.11779099]
[1722697048442,4.61823146,62093.0,62092.0,0.11779099]
[1722697048647,4.46118346,62093.0,62092.0,0.11779099]
[1722697048829,4.45233146,62093.0,62092.0,0.11779099]
[1722697049201,4.45233146,62093.0,62092.0,0.19669099]
[1722697049202,4.23227371,62093.0,62092.0,0.19669099]
[1722697049448,3.82417671,62093.0,62092.0,0.20669099]
[1722697049823,3.81017671,62093.0,62092.0,0.20669099]
[1722697050028,3.11017671,62093.0,62092.0,0.20669099]
[1722697050594,3.14717671,62093.0,62092.0,0.26929099]
[1722697050811,2.78807971,62093.0,62092.0,0.26929099]
[1722697051229,2.41470124,62093.0,62092.0,0.26929099]
[1722697051426,2.81445842,62093.0,62092.0,0.26929099]
[1722697051643,2.90045842,62093.0,62092.0,0.26929099]
[1722697051840,3.22255542,62093.0,62092.0,0.26020399]
[1722697052079,3.23655542,62093.0,62092.0,0.27020399]
[1722697052258,3.23655542,62093.0,62092.0,0.26020399]
[1722697052570,3.55865242,62093.0,62092.0,0.26020399]
[1722697052774,3.25955542,62093.0,62092.0,0.27020399]
[1722697052980,3.95955542,62093.0,62092.0,0.26020399]
[1722697053418,3.95955542,62093.0,62092.0,0.11870399]
[1722697053817,4.28165242,62093.0,62092.0,0.11870399]
[1722697054030,4.28444758,62093.0,62092.0,0.11870399]
[1722697054432,4.33256635,62093.0,62092.0,0.11870399]
[1722697054661,4.01046935,62093.0,62092.0,0.11870399]
[1722697055021,4.33256635,62093.0,62092.0,0.11870399]
[1722697055223,4.01046935,62093.0,62092.0,0.11870399]
[1722697055405,4.01053149,62093.0,62092.0,0.11870399]
[1722697055601,3.96235058,62093.0,62092.0,0.11870399]
[1722697056129,4.22053657,62093.0,62092.0,0.11870399]
[1722697056328,4.94024208,62093.0,62092.0,0.11870399]
[1722697056691,4.89163342,62093.0,62092.0,0.11870399]
[1722697057142,4.42173342,62093.0,62092.0,0.11870399]
[1722697058177,4.08695125,62093.0,62092.0,0.11870399]
[1722697058393,4.41898723,62093.0,62092.0,0.19990399]
[1722697058614,4.41867926,62093.0,62092.0,0.26420399]
[1722697058974,4.09658226,62093.0,62092.0,0.26420399]
[1722697059193,3.77448526,62093.0,62092.0,0.27420399]
[1722697059357,3.6997328,62093.0,62092.0,0.27420399]
[1722697059573,3.3776358,62093.0,62092.0,0.27420399]
[1722697059800,3.19105228,62093.0,62092.0,0.27420399]
[1722697060007,3.51314928,62093.0,62092.0,0.27420399]
[1722697060472,2.86139682,62093.0,62092.0,0.27420399]
[1722697060639,2.98439682,62093.0,62092.0,0.27420399]
[1722697060841,2.93614928,62093.0,62092.0,0.27420399]
[1722697061050,2.98439682,62093.0,62092.0,0.27420399]
[1722697061253,2.93614928,62093.0,62092.0,0.27420399]
[1722697061464,2.98439682,62093.0,62092.0,0.27420399]
[1722697061798,2.98704545,62093.0,62092.0,0.27420399]
[1722697062380,3.12686204,62093.0,62092.0,0.27420399]
[1722697063168,3.0786145,62093.0,62092.0,0.27420399]
[1722697063372,3.4007115,62093.0,62092.0,0.27420399]
[1722697063576,3.39443618,62093.0,62092.0,0.27420399]
[1722697064625,3.51509893,62093.0,62092.0,0.27420399]
[1722697065461,3.48954495,62093.0,62092.0,0.27420399]
[1722697065662,3.3930103,62093.0,62092.0,0.27420399]
[1722697065877,3.48954495,62093.0,62092.0,0.27420399]
[1722697066319,3.3930103,62093.0,62092.0,0.27420399]
[1722697066964,3.51367305,62093.0,62092.0,0.27420399]
[1722697067410,3.3930103,62093.0,62092.0,0.12870399]
[1722697067833,3.3930103,62093.0,62092.0,0.11870399]
[1722697068460,3.7151073,62093.0,62092.0,0.11870399]
[1722697068890,3.71132439,62093.0,62092.0,0.11870399]
[1722697069456,3.38922739,62093.0,62092.0,0.11870399]
[1722697070091,3.71132439,62093.0,62092.0,0.11870399]
[1722697070861,3.71132439,62093.0,62092.0,0.11570399]
[1722697072282,3.1846904,62093.0,62092.0,0.11570399]
[1722697072518,3.70365421,62093.0,62092.0,0.11570399]
[1722697074510,3.65344136,62093.0,62092.0,0.11570399]
[1722697075124,4.13289353,62093.0,62092.0,0.11570399]
[1722697075323,3.65344136,62093.0,62092.0,0.11570399]
[1722697075522,3.81644546,62093.0,62092.0,0.11570399]
[1722697075723,4.35344136,62093.0,62092.0,0.11570399]
[1722697076109,4.65344136,62093.0,62092.0,0.11570399]
[1722697076915,4.63944136,62093.0,62092.0,0.11570399]
[1722697077371,3.93944136,62093.0,62092.0,0.11570399]
[1722697077502,3.95344136,62093.0,62092.0,0.11570399]
[1722697078205,4.25834846,62093.0,62092.0,0.11570399]
[1722697078405,4.27234846,62093.0,62092.0,0.11570399]
[1722697078703,4.28639357,62093.0,62092.0,0.11570399]
[1722697078910,3.95344136,62093.0,62092.0,0.11570399]
[1722697079119,4.30461576,62093.0,62092.0,0.11570399]
[1722697079312,4.60520058,62093.0,62092.0,0.11570399]
[1722697079833,4.60520058,62093.0,62092.0,0.19780399]
[1722697080043,3.90520058,62093.0,62092.0,0.19780399]
[1722697080516,3.91920058,62093.0,62092.0,0.19780399]
[1722697081115,3.90520058,62093.0,62092.0,0.19780399]
[1722697081292,3.91920058,62093.0,62092.0,0.19780399]
[1722697082223,3.91920058,62093.0,62092.0,0.11570399]
[1722697082224,3.92112601,62093.0,62092.0,0.11570399]
[1722697082751,3.69812601,62093.0,62092.0,0.12570399]
[1722697082950,3.52095124,62093.0,62092.0,0.12570399]
[1722697083125,3.37602901,62093.0,62092.0,0.12570399]
[1722697083330,3.52094993,62093.0,62092.0,0.12570399]
[1722697083547,3.37602901,62093.0,62092.0,0.12570399]
[1722697083876,3.52095346,62093.0,62092.0,0.12570399]
[1722697084258,3.52178346,62093.0,62092.0,0.12570399]
[1722697084601,3.39985901,62093.0,62092.0,0.08570399]
[1722697085793,3.38760521,62093.0,62092.0,0.08570399]
[1722697087619,3.38760521,62093.0,62092.0,0.16780399]
[1722697087833,2.5310341,62093.0,62092.0,0.22960399]
[1722697088154,2.20614194,62093.0,62092.0,0.22960399]
[1722697088285,2.30278162,62093.0,62092.0,0.22960399]
[1722697088490,2.28878162,62093.0,62092.0,0.22960399]
[1722697088691,2.19214194,62093.0,62092.0,0.22960399]